bitfinex-derivatives/quotes_SOLF0:USTF0_20241215
["timestamp","ask_amount","ask_price","bid_price","bid_amount"]
[1734247037325,8.4697888,218.49,218.38,1.451]
[1734247037326,6.3897888,218.47,218.39,6.3897888]
[1734247037722,2.2891,218.46,218.41,8.6793888]
[1734247038125,8.4697888,218.49,218.41,6.3897888]
[1734247038520,2.289,218.47,218.42,2.2894]
[1734247039223,2.289,218.47,218.41,6.3897888]
[1734247039429,2.2889,218.48,218.43,2.2894]
[1734247045024,2.2889,218.48,218.43,8.6791888]
[1734247045622,2.2886,218.51,218.46,2.289]
[1734247045821,2.06,218.52,218.45,6.3897888]
[1734247047126,6.3897888,218.53,218.45,6.3897888]
[1734247047330,2.06,218.52,218.45,6.3897888]
[1734247047625,2.2886,218.51,218.46,2.289]
[1734247047829,4.3486,218.51,218.45,6.3897888]
[1734247048430,2.2886,218.5,218.43,6.3897888]
[1734247049131,6.3897888,218.49,218.42,9.3014888]
[1734247050531,2.2891,218.47,218.42,7.8851888]
[1734247051032,2.2891,218.46,218.42,1.4954]
[1734247051326,2.06,218.46,218.41,5.38198993]
[1734247051627,6.3897888,218.45,218.38,1.451]
[1734247051835,6.3897888,218.45,218.36,6.3897888]
[1734247052132,2.2895,218.42,218.36,8.6798888]
[1734247052337,4.3495,218.42,218.36,8.6798888]
[1734247052728,4.3495,218.42,218.37,5.59744541]
[1734247053832,2.2893,218.44,218.38,8.6796888]
[1734247054130,2.06,218.43,218.38,6.3897888]
[1734247054337,2.06,218.43,218.4,6.3897888]
[1734247054537,2.06,218.46,218.42,6.3897888]
[1734247054735,2.06,218.47,218.42,6.3897888]
[1734247054936,4.349,218.47,218.42,8.6791888]
[1734247055131,6.3897888,218.49,218.42,6.3897888]
[1734247055339,2.06,218.48,218.44,8.6790888]
[1734247055543,2.06,218.49,218.44,8.6790888]
[1734247056143,2.2885,218.51,218.44,6.3897888]
[1734247056440,2.06,218.5,218.44,6.3897888]
[1734247056735,2.06,218.5,218.44,8.6789888]
[1734247056935,2.06,218.5,218.44,6.3897888]
[1734247057637,2.2889,218.48,218.44,6.3897888]
[1734247058138,8.4497888,218.5,218.42,6.3897888]
[1734247059446,2.289,218.47,218.42,8.6792888]
[1734247062042,8.4497888,218.5,218.42,8.6792888]
[1734247062043,2.2891,218.46,218.42,6.3897888]
[1734247062244,2.06,218.46,218.4,6.3897888]
[1734247062549,8.4497888,218.46,218.4,6.3897888]
[1734247063345,2.2893,218.44,218.39,2.2897]
[1734247065240,8.4497888,218.46,218.38,6.3897888]
[1734247067452,2.2895,218.42,218.38,6.3897888]
[1734247067645,2.06,218.42,218.38,6.3897888]
[1734247068742,2.2897,218.41,218.38,6.3897888]
[1734247069755,2.2897,218.4,218.38,6.3897888]
[1734247070061,2.2897,218.4,218.36,8.6798888]
[1734247070257,2.06,218.42,218.36,8.6798888]
[1734247070445,2.2896,218.41,218.36,8.6798888]
[1734247071154,2.2896,218.41,218.38,5.57344611]
[1734247071355,2.2897,218.4,218.36,6.3897888]
[1734247071950,2.2897,218.4,218.35,9.3638888]
[1734247072753,2.2897,218.4,218.35,11.6540888]
[1734247074255,2.2897,218.4,218.37,5.36592111]
[1734247074652,2.2897,218.4,218.37,11.75570991]
[1734247076650,2.06,218.42,218.37,5.36592111]
[1734247076961,2.06,218.42,218.38,6.3897888]
[1734247077653,2.06,218.42,218.39,2.2898]
[1734247078262,2.06,218.42,218.4,2.2897]
[1734247079062,2.06,218.42,218.38,8.6795888]
[1734247079262,2.06,218.42,218.37,5.36592111]
[1734247080057,8.4497888,218.44,218.37,5.36592111]
[1734247080363,8.4497888,218.44,218.37,7.65582111]
[1734247081656,6.3897888,218.42,218.37,5.36592111]
[1734247081861,2.06,218.44,218.32,6.3897888]
[1734247081862,6.3897888,218.4,218.32,6.3897888]
[1734247082056,8.4497888,218.4,218.32,6.3897888]
[1734247082966,2.2901,218.37,218.32,5.61929096]
[1734247083462,2.2904,218.33,218.28,6.3897888]
[1734247084372,2.2904,218.33,218.28,2.2909]
[1734247084570,2.2904,218.33,218.28,8.6806888]
[1734247085164,2.2904,218.33,218.3,5.48293243]
[1734247085365,8.4497888,218.36,218.3,5.48293243]
[1734247085564,2.2903,218.34,218.3,5.48293243]
[1734247088266,2.2903,218.34,218.29,2.2908]
[1734247088571,10.7399888,218.36,218.3,2.2907]
[1734247088773,10.7399888,218.36,218.3,8.6804888]
[1734247089173,2.2902,218.35,218.3,8.6804888]
[1734247090776,8.4497888,218.36,218.31,2.2906]
[1734247090976,56.03877474,218.5,218.32,6.3897888]
[1734247090977,2.06,218.38,218.32,6.3897888]
[1734247091570,8.4497888,218.39,218.32,6.3897888]
[1734247092581,2.2899,218.38,218.33,2.2903]
[1734247093373,6.3897888,218.35,218.25,6.3897888]
[1734247093574,6.3897888,218.33,218.25,6.3897888]
[1734247094380,6.3897888,218.33,218.24,9.3140888]
[1734247094576,2.2907,218.31,218.26,2.2911]
[1734247095180,6.3897888,218.29,218.24,2.9243]
[1734247095375,2.291,218.28,218.24,2.9243]
[1734247095575,2.291,218.28,218.26,5.50488082]
[1734247097082,8.6806888,218.29,218.26,5.50488082]
[1734247098784,8.4497888,218.3,218.22,7.8600888]
[1734247098983,2.291,218.28,218.22,10.1515888]
[1734247101085,2.291,218.28,218.23,2.2914]
[1734247102781,2.291,218.28,218.25,5.50165022]
[1734247103187,2.291,218.28,218.22,7.8600888]
[1734247103188,6.3897888,218.28,218.22,1.4703]
[1734247103790,2.2916,218.22,218.16,6.3897888]
[1734247104486,2.2916,218.22,218.19,5.4845968]
[1734247105085,6.3897888,218.24,218.16,6.3897888]
[1734247105289,6.3897888,218.24,218.16,8.6819888]
[1734247106589,2.2917,218.21,218.16,8.6819888]
[1734247107089,6.3897888,218.24,218.18,5.50481462]
[1734247107896,2.2916,218.23,218.18,5.50481462]
[1734247110696,13.75,218.43,218.2,6.3897888]
[1734247110892,6.3897888,218.28,218.2,6.3897888]
[1734247111095,2.06,218.27,218.22,2.2915]
[1734247111301,4.3511,218.27,218.22,2.2915]
[1734247112199,4.3511,218.27,218.2,6.3897888]
[1734247112200,2.06,218.27,218.2,6.3897888]
[1734247112402,2.06,218.27,218.2,8.6814888]
[1734247112403,2.2912,218.26,218.2,8.6814888]
[1734247112706,8.6809888,218.26,218.2,8.6814888]
[1734247113205,8.6809888,218.26,218.21,2.2917]
[1734247116105,2.2912,218.26,218.21,2.2917]
[1734247116305,2.06,218.27,218.1,2.2928]
[1734247116306,6.3897888,218.22,218.1,2.2928]
[1734247116600,6.3897888,218.17,218.09,6.5776288]
[1734247116806,8.4497888,218.17,218.14,5.57283762]
[1734247118706,8.4497888,218.17,218.09,6.5776288]
[1734247119703,2.2922,218.16,218.1,2.2928]
[1734247121109,2.2922,218.16,218.13,5.58589108]
[1734247121500,2.06,218.17,218.13,5.58589108]
[1734247122406,4.3521,218.17,218.13,5.58589108]
[1734247129711,2.2923,218.15,218.13,5.58589108]
[1734247130215,4.4969,218.25,218.11,5.37231937]
[1734247130418,2.04,218.24,218.11,5.37231937]
[1734247130613,6.3897888,218.18,218.11,5.37231937]
[1734247130812,2.04,218.17,218.11,5.37231937]
[1734247131617,4.3321,218.17,218.12,2.2926]
[1734247132121,2.2921,218.17,218.12,2.2926]
[1734247132316,2.2918,218.2,218.14,2.2923]
[1734247132525,2.04,218.23,218.15,6.3897888]
[1734247132822,8.4297888,218.23,218.15,6.3897888]
[1734247133218,4.3316,218.22,218.16,2.2922]
[1734247134221,4.3316,218.22,218.17,2.2921]
[1734247134424,2.04,218.22,218.15,6.3897888]
[1734247135724,2.04,218.22,218.17,2.2921]
[1734247137424,10.7209888,218.26,218.21,2.2917]
[1734247139328,6.3897888,218.26,218.19,6.3897888]
[1734247139525,2.04,218.29,218.23,6.3897888]
[1734247139825,2.04,218.3,218.23,6.3897888]
[1734247140025,6.3897888,218.31,218.23,6.3897888]
[1734247140725,6.3897888,218.31,218.26,2.2911]
[1734247141620,8.6803888,218.31,218.25,2.2913]
[1734247141829,6.3897888,218.29,218.25,2.2913]
[1734247145833,2.291,218.28,218.22,2.2916]
[1734247146027,6.3897888,218.27,218.19,6.3897888]
[1734247146529,8.6808888,218.27,218.21,2.2917]
[1734247146930,8.6808888,218.27,218.19,6.3897888]
[1734247147129,6.3897888,218.27,218.22,2.2916]
[1734247148429,2.04,218.29,218.22,2.2916]
[1734247148430,8.6807888,218.28,218.22,2.2916]
[1734247148627,2.291,218.28,218.22,2.2916]
[1734247148824,2.291,218.28,218.24,5.59872621]
[1734247149930,2.2911,218.27,218.24,5.59872621]
[1734247151323,2.2912,218.26,218.2,2.2917]
[1734247151728,2.2912,218.26,218.22,5.38746279]
[1734247151934,2.2911,218.27,218.22,5.38746279]
[1734247152631,2.2911,218.27,218.22,7.67896279]
[1734247153133,2.2909,218.28,218.23,2.2915]
[1734247156432,8.4297888,218.29,218.22,5.38746279]
[1734247157330,2.2911,218.27,218.22,5.38746279]
[1734247157926,2.2911,218.27,218.22,7.67906279]
[1734247158134,2.04,218.27,218.22,5.38746279]
[1734247158329,6.3897888,218.31,218.23,6.3897888]
[1734247158637,2.04,218.3,218.23,6.3897888]
[1734247159235,4.3308,218.3,218.25,2.2912]
[1734247159436,5.47494578,218.38,218.25,6.3897888]
[1734247159735,6.3897888,218.34,218.25,6.3897888]
[1734247159935,2.04,218.33,218.22,2.04]
[1734247160234,6.3897888,218.32,218.25,6.3897888]
[1734247160634,2.2907,218.3,218.26,2.2911]
[1734247160830,6.3897888,218.32,218.26,2.2911]
[1734247161031,4.4412,218.41,218.25,6.3897888]
[1734247161230,2.2905,218.32,218.28,2.2909]
[1734247161431,2.2905,218.32,218.25,6.3897888]
[1734247161933,2.04,218.33,218.25,2.2913]
[1734247162131,2.2906,218.31,218.26,6.3897888]
[1734247162327,8.4297888,218.33,218.26,6.3897888]
[1734247163429,2.2905,218.32,218.27,2.2909]
[1734247163637,2.04,218.33,218.26,6.3897888]
[1734247164039,2.04,218.33,218.23,3.0159]
[1734247164239,2.04,218.33,218.26,6.3897888]
[1734247164538,2.2906,218.32,218.26,8.6808888]
[1734247164837,2.2906,218.32,218.26,6.3897888]
[1734247165037,4.3306,218.32,218.26,6.3897888]
[1734247165632,4.3306,218.32,218.27,2.291]
[1734247166134,4.3306,218.32,218.28,2.2909]
[1734247166639,2.2906,218.32,218.28,2.2909]
[1734247168639,8.4297888,218.33,218.26,6.3897888]
[1734247168839,2.04,218.33,218.26,6.3897888]
[1734247169338,2.04,218.36,218.28,6.3897888]
[1734247169533,2.04,218.36,218.3,6.3897888]
[1734247170740,2.04,218.37,218.3,6.3897888]
[1734247171638,8.4297888,218.38,218.3,6.3897888]
[1734247171836,2.2901,218.36,218.32,2.2905]
[1734247173042,2.29,218.37,218.32,8.6802888]
[1734247174143,6.3897888,218.35,218.27,1.4975]
[1734247174343,6.3897888,218.35,218.26,6.3897888]
[1734247174548,2.04,218.34,218.26,6.3897888]
[1734247175344,2.2905,218.32,218.27,2.291]
[1734247176347,4.3304,218.34,218.28,6.3897888]
[1734247176547,2.04,218.34,218.3,6.3897888]
[1734247176943,2.04,218.34,218.31,2.2905]
[1734247177243,4.3302,218.36,218.31,2.2905]
[1734247177448,2.29,218.38,218.32,8.6801888]
[1734247178548,2.29,218.38,218.33,2.2904]
[1734247179640,8.4297888,218.39,218.33,2.2904]
[1734247179641,2.29,218.37,218.33,2.2904]
[1734247179945,2.29,218.37,218.3,6.3897888]
[1734247179946,6.3897888,218.37,218.3,6.3897888]
[1734247180352,6.3897888,218.37,218.29,2.04]
[1734247180646,6.3897888,218.37,218.3,6.3897888]
[1734247181650,2.2903,218.35,218.3,8.6804888]
[1734247183545,2.2903,218.34,218.3,8.6804888]
[1734247184847,2.2903,218.34,218.3,6.3897888]
[1734247186143,2.2903,218.34,218.26,2.04]
[1734247186144,6.3897888,218.35,218.31,5.56998921]
[1734247186349,2.04,218.34,218.31,5.56998921]
[1734247186752,2.2905,218.32,218.31,5.56998921]
[1734247186953,2.2905,218.32,218.28,6.3897888]
[1734247187548,2.04,218.34,218.26,6.3897888]
[1734247187851,6.3897888,218.33,218.26,6.3897888]
[1734247188051,2.2906,218.31,218.26,6.3897888]
[1734247189656,2.2906,218.31,218.27,5.40199732]
[1734247191754,2.02,218.3,218.23,9.4056888]
[1734247192056,2.02,218.3,218.23,6.3897888]
[1734247192251,2.2909,218.28,218.23,6.3897888]
[1734247192753,2.02,218.3,218.23,6.3897888]
[1734247193353,2.2911,218.27,218.23,6.3897888]
[1734247193961,2.2911,218.27,218.21,2.2917]
[1734247194259,2.02,218.26,218.2,1.4042]
[1734247194461,6.3897888,218.25,218.15,2.02]
[1734247194664,6.3897888,218.21,218.19,5.37537131]
[1734247194960,8.4297888,218.21,218.11,2.9125]
[1734247195165,6.3897888,218.19,218.12,6.3897888]
[1734247195361,2.292,218.18,218.12,6.3897888]
[1734247196366,8.4297888,218.17,217.99,6.30315601]
[1734247196669,6.3897888,218.15,218.08,6.3897888]
[1734247196959,1.4097,218.24,218.09,5.61666948]
[1734247197164,6.3897888,218.19,218.12,6.3897888]
[1734247197357,2.04,218.18,218.12,6.3897888]
[1734247198765,6.3897888,218.17,218.1,8.6824888]
[1734247199269,2.2923,218.16,218.1,8.6824888]
[1734247200267,6.3897888,218.17,218.11,2.2927]
[1734247200768,2.2922,218.16,218.09,5.61666948]
[1734247200964,6.3897888,218.15,218.09,5.61666948]
[1734247201361,2.2925,218.13,218.09,5.61666948]
[1734247204466,2.2926,218.12,218.09,5.61666948]
[1734247204960,6.3897888,218.13,218.09,5.61666948]
[1734247205163,2.2927,218.11,218.09,5.61666948]
[1734247205471,2.2927,218.11,218.05,6.3897888]
[1734247205762,2.2927,218.11,218.03,6.3897888]
[1734247205763,2.2931,218.08,218.03,6.3897888]
[1734247206165,2.04,218.1,218.05,6.3897888]
[1734247206362,2.04,218.09,218.05,6.3897888]
[1734247206765,2.04,218.09,218.06,2.2932]
[1734247207163,1.4097,218.24,218.07,6.3897888]
[1734247207367,2.04,218.23,218.09,6.3897888]
[1734247207567,6.3897888,218.16,218.09,6.3897888]
[1734247207761,2.2923,218.15,218.09,8.6826888]
[1734247207966,2.04,218.14,218.09,8.6826888]
[1734247208575,4.3324,218.14,218.09,8.6826888]
[1734247209672,4.3324,218.14,218.09,6.3897888]
[1734247210166,2.2923,218.16,218.11,2.2927]
[1734247210371,2.04,218.17,218.11,8.6824888]
[1734247210570,2.04,218.16,218.13,6.3897888]
[1734247210875,1.4097,218.24,218.13,6.3897888]
[1734247210876,2.04,218.19,218.13,6.3897888]
[1734247211071,1.4097,218.24,218.1,6.3897888]
[1734247211072,6.3897888,218.17,218.1,6.3897888]
[1734247211270,2.2924,218.15,218.08,8.6827888]
[1734247211475,2.2924,218.15,218.08,6.3897888]
[1734247211668,2.04,218.16,218.08,6.3897888]
[1734247211974,6.3897888,218.19,218.12,6.3897888]
[1734247212171,2.04,218.18,218.12,6.3897888]
[1734247212674,2.2921,218.17,218.12,6.3897888]
[1734247213979,6.3897888,218.17,218.1,6.3897888]
[1734247214171,6.3897888,218.15,218.08,6.3897888]
[1734247214378,2.04,218.14,218.08,6.3897888]
[1734247215678,2.2925,218.13,218.08,8.6827888]
[1734247215881,2.2925,218.13,218.08,2.293]
[1734247216077,6.3897888,218.13,218.06,11.87581566]
[1734247216377,2.2929,218.1,218.06,11.87581566]
[1734247216775,2.04,218.14,218.06,11.87581566]
[1734247217078,2.2925,218.13,218.08,6.3897888]
[1734247217274,2.2925,218.13,218.08,8.6826888]
[1734247218077,2.04,218.14,218.09,2.2929]
[1734247218876,2.292,218.19,218.12,6.3897888]
[1734247219071,2.04,218.21,218.16,6.3897888]
[1734247219777,6.3897888,218.23,218.16,6.3897888]
[1734247219976,2.08,218.22,218.16,6.3897888]
[1734247220575,2.2918,218.2,218.16,6.3897888]
[1734247220976,2.08,218.22,218.11,2.04]
[1734247220977,2.08,218.22,218.14,6.3897888]
[1734247221178,6.3897888,218.21,218.14,6.3897888]
[1734247221577,2.2918,218.2,218.14,8.6820888]
[1734247221776,1.4133,218.34,218.18,6.3897888]
[1734247221978,6.3897888,218.26,218.18,6.3897888]
[1734247222279,2.08,218.25,218.2,6.3897888]
[1734247222473,2.08,218.26,218.2,6.3897888]
[1734247223277,2.08,218.26,218.16,9.98431938]
[1734247223474,2.291,218.28,218.21,2.2916]
[1734247223678,2.291,218.28,218.19,9.98431938]
[1734247223679,2.08,218.28,218.19,9.98431938]
[1734247223880,12.88051938,218.33,218.19,12.06431938]
[1734247224084,2.2909,218.28,218.23,2.2915]
[1734247224279,2.2909,218.28,218.2,2.9714]
[1734247225481,2.2908,218.3,218.2,2.9714]
[1734247225680,2.2908,218.3,218.22,9.98431938]
[1734247225681,4.3708,218.3,218.22,9.98431938]
[1734247226584,4.3708,218.3,218.24,2.2913]
[1734247227583,2.2909,218.29,218.22,12.27581938]
[1734247227783,2.2909,218.29,218.22,9.98431938]
[1734247228282,2.08,218.3,218.24,2.2914]
[1734247228581,9.98431938,218.33,218.24,2.2914]
[1734247228777,2.08,218.32,218.24,2.2914]
[1734247228978,2.08,218.31,218.24,2.2914]
[1734247229183,2.2907,218.3,218.24,2.2914]
[1734247231787,2.08,218.34,218.25,9.98431938]
[1734247232688,4.3703,218.34,218.28,2.2909]
[1734247233081,2.2903,218.34,218.28,2.2909]
[1734247233280,2.2903,218.34,218.25,9.98431938]
[1734247233281,2.08,218.35,218.25,9.98431938]
[1734247233479,2.08,218.34,218.25,9.98431938]
[1734247233687,2.08,218.34,218.26,1.5397]
[1734247233885,2.08,218.34,218.29,2.2908]
[1734247234490,2.08,218.34,218.26,3.6197]
[1734247235089,2.2905,218.32,218.26,5.9108]
[1734247235289,2.2905,218.32,218.26,3.8308]
[1734247235694,2.08,218.34,218.26,1.5397]
[1734247235895,2.2908,218.3,218.24,4.3713]
[1734247236195,2.2908,218.3,218.24,2.2913]
[1734247237694,2.08,218.34,218.22,12.06431938]
[1734247237884,2.08,218.34,218.25,2.2912]
[1734247238092,2.08,218.34,218.22,9.98431938]
[1734247238286,9.98431938,218.33,218.21,1.5397]
[1734247238492,2.08,218.34,218.2,2.9714]
[1734247238493,9.98431938,218.3,218.2,2.9714]
[1734247238688,2.08,218.29,218.2,1.4661]
[1734247238891,2.2914,218.24,218.19,2.2918]
[1734247239492,2.08,218.29,218.16,2.08]
[1734247239693,2.2913,218.26,218.2,2.2918]
[1734247241495,2.08,218.29,218.2,2.2918]
[1734247241796,2.08,218.29,218.15,13.49061938]
[1734247242090,2.08,218.29,218.11,1.496]
[1734247242300,2.08,218.29,218.14,9.98431938]
[1734247242594,2.2918,218.21,218.15,2.2922]
[1734247242797,2.08,218.23,218.15,2.2922]
[1734247242999,2.08,218.22,218.15,2.2922]
[1734247243195,2.08,218.22,218.16,6.39222383]
[1734247244500,2.08,218.22,218.18,6.39222383]
[1734247244697,2.08,218.22,218.2,6.39222383]
[1734247246795,4.3716,218.22,218.2,6.39222383]
[1734247251801,2.8626,218.32,218.2,6.39222383]
[1734247252004,2.06,218.31,218.23,6.39222383]
[1734247252210,8.45222383,218.31,218.23,6.39222383]
[1734247252705,6.39222383,218.27,218.21,6.39222383]
[1734247252906,2.06,218.26,218.21,6.39222383]
[1734247253305,2.06,218.26,218.17,5.43387584]
[1734247253498,6.39222383,218.25,218.16,6.39222383]
[1734247253703,2.06,218.26,218.16,6.39222383]
[1734247253704,6.39222383,218.23,218.16,6.39222383]
[1734247253904,2.06,218.22,218.16,6.39222383]
[1734247254105,2.2921,218.17,218.14,6.39222383]
[1734247257404,2.2922,218.16,218.14,6.39222383]
[1734247258303,2.2923,218.15,218.14,6.39222383]
[1734247258507,2.06,218.18,218.11,6.39222383]
[1734247258708,2.06,218.17,218.11,6.39222383]
[1734247259607,2.2926,218.13,218.11,6.39222383]
[1734247260503,2.2928,218.11,218.07,1.5035]
[1734247260702,2.06,218.12,218.09,6.39222383]
[1734247261209,2.2928,218.1,218.09,6.39222383]
[1734247262603,2.293,218.09,218.03,2.2935]
[1734247262805,2.293,218.09,218.06,6.39222383]
[1734247263212,2.293,218.09,218.08,6.39222383]
[1734247263813,2.06,218.12,218.08,6.39222383]
[1734247264114,2.2929,218.1,218.08,6.39222383]
[1734247266712,4.4951,218.23,218.08,6.39222383]
[1734247266918,6.39222383,218.18,218.1,6.39222383]
[1734247267115,2.06,218.17,218.1,6.39222383]
[1734247267322,2.2925,218.13,218.1,6.39222383]
[1734247267614,2.06,218.13,218.1,6.39222383]
[1734247268216,2.06,218.13,218.05,5.47476286]
[1734247268417,2.06,218.13,218.07,6.39222383]
[1734247269311,2.293,218.09,218.07,6.39222383]
[1734247269611,2.293,218.09,218.05,6.39222383]
[1734247269612,2.06,218.09,218.05,6.39222383]
[1734247270216,2.2932,218.07,218.05,6.39222383]
[1734247276516,2.2932,218.07,217.98,2.06]
[1734247276517,6.39222383,218.08,217.85,6.30315601]
[1734247276712,6.39222383,218.08,218.01,12.00159407]
[1734247277118,2.2933,218.06,218.01,12.00159407]
[1734247277418,2.06,218.05,218.01,12.00159407]
[1734247277613,2.06,218.05,218.01,6.39222383]
[1734247277818,2.2937,218.02,217.99,6.39222383]
[1734247278012,2.2937,218.02,218.0,0.34682]
[1734247279216,92.48897136,218.23,218.0,0.34682]
[1734247279217,4.3538,218.01,218.0,0.34682]
[1734247280423,2.2943,217.97,217.93,6.39222383]
[1734247280624,2.2943,217.97,217.94,5.60728057]
[1734247280821,2.06,218.01,217.95,6.39222383]
[1734247281026,2.2941,217.99,217.95,6.39222383]
[1734247281726,2.06,218.0,217.97,6.39222383]
[1734247281927,6.39222383,218.05,217.97,6.39222383]
[1734247282122,2.06,218.04,217.97,6.39222383]
[1734247282317,6.39222383,218.05,217.93,2.06]
[1734247282318,6.39222383,218.08,218.01,6.39222383]
[1734247282721,55.89077136,218.23,218.05,6.39222383]
[1734247282922,4.5898,218.22,218.09,6.39222383]
[1734247283124,6.39222383,218.18,218.11,6.39222383]
[1734247283427,2.2922,218.16,218.11,6.39222383]
[1734247283928,2.2925,218.14,218.09,8.45222383]
[1734247284323,2.06,218.17,218.09,6.39222383]
[1734247284524,6.39222383,218.15,218.09,6.39222383]
[1734247285122,2.06,218.17,218.07,2.2931]
[1734247285324,2.06,218.17,218.07,7.73602322]
[1734247285825,2.2925,218.14,218.07,7.73602322]
[1734247286329,2.2925,218.13,218.07,7.73602322]
[1734247290835,2.06,218.17,218.08,9.99464548]
[1734247290836,2.2924,218.15,218.08,9.99464548]
[1734247291036,2.06,218.17,218.08,9.99464548]
[1734247291441,2.2922,218.16,218.09,2.2928]
[1734247292535,2.2922,218.16,218.1,2.2928]
[1734247294833,2.2923,218.15,218.1,2.2928]
[1734247295942,2.2926,218.12,218.07,5.44292322]
[1734247297242,2.2926,218.12,218.07,7.73602322]
[1734247297439,2.06,218.17,218.05,9.99464548]
[1734247297647,2.8186,218.21,218.03,1.4542]
[1734247297648,9.99464548,218.13,218.03,1.4542]
[1734247297941,2.06,218.12,218.03,1.4542]
[1734247299034,2.06,218.12,218.04,5.40383284]
[1734247299035,2.2931,218.08,218.04,5.40383284]
[1734247300040,2.06,218.12,218.05,9.99464548]
[1734247300437,2.06,218.15,218.05,9.99464548]
[1734247300640,2.2926,218.13,218.08,2.293]
[1734247300842,2.06,218.15,218.04,7.46383284]
[1734247301043,2.06,218.15,218.06,9.99464548]
[1734247301246,2.2925,218.13,218.08,2.293]
[1734247302448,2.2926,218.12,218.07,2.2931]
[1734247302644,2.06,218.15,218.04,5.40383284]
[1734247304747,2.06,218.15,218.02,2.8708]
[1734247304748,9.99464548,218.13,218.02,2.8708]
[1734247304953,9.99464548,218.1,217.96,9.99464548]
[1734247305151,2.06,218.09,217.96,9.99464548]
[1734247305453,2.2936,218.04,217.99,2.294]
[1734247305648,4.3536,218.04,217.99,2.294]
[1734247306754,2.2936,218.03,217.97,2.2941]
[1734247307349,2.2937,218.02,217.97,2.2941]
[1734247307849,2.2937,218.02,217.99,5.44046372]
[1734247308255,2.2938,218.01,217.95,12.28894548]
[1734247309750,2.2938,218.01,217.95,2.2943]
[1734247310645,2.2938,218.01,217.96,2.2943]
[1734247311556,2.06,218.0,217.92,4.4286]
[1734247312658,2.2942,217.98,217.92,6.7232]
[1734247313456,2.2942,217.98,217.95,5.52185216]
[1734247315060,2.06,218.0,217.95,5.52185216]
[1734247316553,2.2942,217.98,217.95,5.52185216]
[1734247317059,2.06,217.98,217.95,5.52185216]
[1734247318655,1.4104,218.13,217.96,6.40536707]
[1734247318856,2.06,218.11,217.98,6.40536707]
[1734247319055,6.40536707,218.07,217.98,6.40536707]
[1734247319252,2.06,218.06,218.01,6.40536707]
[1734247320563,4.3534,218.06,218.01,8.69916707]
[1734247320860,6.40536707,218.09,218.01,8.69916707]
[1734247320861,2.06,218.07,218.01,6.40536707]
[1734247321554,2.06,218.07,218.03,6.40536707]
[1734247322054,246.42408146,218.29,218.05,6.40536707]
[1734247322261,246.42408146,218.29,218.07,6.40536707]
[1734247322262,6.40536707,218.15,218.07,6.40536707]
[1734247322453,8.46536707,218.15,218.07,6.40536707]
[1734247322860,2.2926,218.13,218.07,6.40536707]
[1734247323255,2.2926,218.13,218.04,4.4015]
[1734247323555,2.2926,218.13,218.07,2.2931]
[1734247325059,2.2924,218.15,218.05,9.99507836]
[1734247325259,2.06,218.16,218.05,9.99507836]
[1734247325956,9.99507836,218.18,218.05,9.99507836]
[1734247326161,9.99507836,218.18,218.1,2.2928]
[1734247326162,2.2923,218.16,218.1,2.2928]
[1734247326368,9.99507836,218.21,218.08,9.99507836]
[1734247326664,2.06,218.2,218.12,2.2926]
[1734247326957,2.06,218.2,218.08,9.99507836]
[1734247327157,2.2927,218.12,218.05,9.99507836]
[1734247327366,2.2927,218.12,218.06,2.06]
[1734247327661,2.2928,218.11,218.04,6.6949]
[1734247327963,2.2928,218.11,218.04,8.7549]
[1734247328157,2.2928,218.11,218.06,5.47676212]
[1734247331766,2.2928,218.11,218.06,7.77006212]
[1734247333664,2.2929,218.1,218.06,5.47676212]
[1734247333968,2.06,218.12,218.0,12.05507836]
[1734247334164,2.06,218.11,217.96,4.4318]
[1734247334358,2.2935,218.04,217.99,2.294]
[1734247334868,4.3532,218.07,218.02,2.2936]
[1734247335057,2.06,218.07,217.99,9.99507836]
[1734247335262,2.06,218.09,217.99,12.05507836]